[Event "*** Titled Tuesday Blitz"]
[Site "Chess.com"]
[Date "2021.04.27"]
[Round "8"]
[White "DonBroca"]
[Black "The_filthy"]
[Result "0-1"]
[WhiteElo "2224"]
[BlackElo "2406"]
[TimeControl "180+1"]
[EndTime "11:25:53 PDT"]
[Termination "The_filthy won by resignation"]

1. e4 {[%clk 0:03:00.9]} 1... e6 {[%clk 0:02:56.7]} 2. d4 {[%clk 0:02:59.8]}
2... d5 {[%clk 0:02:56.8]} 3. exd5 {[%clk 0:03:00.7]} 3... exd5 {[%clk 0:02:57]}
4. Bd3 {[%clk 0:02:59.3]} 4... Nf6 {[%clk 0:02:57]} 5. Nf3 {[%clk 0:02:58.8]}
5... Bg4 {[%clk 0:02:54.7]} 6. O-O {[%clk 0:02:58]} 6... Be7 {[%clk 0:02:55.2]}
7. h3 {[%clk 0:02:57.7]} 7... Bh5 {[%clk 0:02:54.7]} 8. Bf4 {[%clk 0:02:49.2]}
8... c6 {[%clk 0:02:54.4]} 9. Re1 {[%clk 0:02:47.4]} 9... O-O {[%clk 0:02:54]}
10. c3 {[%clk 0:02:44.5]} 10... Nbd7 {[%clk 0:02:54.3]} 11. Nbd2 {[%clk
0:02:44.6]} 11... Re8 {[%clk 0:02:54.7]} 12. Nf1 {[%clk 0:02:44.4]} 12... Qb6
{[%clk 0:02:48.3]} 13. g4 {[%clk 0:02:26.2]} 13... Bg6 {[%clk 0:02:41.5]} 14.
Rb1 {[%clk 0:02:26]} 14... Bxd3 {[%clk 0:02:34.6]} 15. Qxd3 {[%clk 0:02:26.9]}
15... Ne4 {[%clk 0:02:33.1]} 16. Ng3 {[%clk 0:02:22.8]} 16... Nxg3 {[%clk
0:02:25.3]} 17. Bxg3 {[%clk 0:02:16.1]} 17... Bf6 {[%clk 0:02:23.9]} 18. b3
{[%clk 0:01:57.5]} 18... h6 {[%clk 0:02:21.4]} 19. Nh4 {[%clk 0:01:38.5]} 19...
Qa5 {[%clk 0:02:10.6]} 20. a4 {[%clk 0:00:55.9]} 20... Re4 {[%clk 0:01:45.5]}
21. f3 {[%clk 0:00:51.3]} 21... Ree8 {[%clk 0:01:40.1]} 22. Nf5 {[%clk
0:00:44.3]} 22... Qb6 {[%clk 0:01:31.9]} 23. b4 {[%clk 0:00:33.2]} 23... a5
{[%clk 0:01:25.5]} 24. b5 {[%clk 0:00:26.1]} 24... c5 {[%clk 0:01:23.6]} 25. Kg2
{[%clk 0:00:14.3]} 25... cxd4 {[%clk 0:01:22]} 26. cxd4 {[%clk 0:00:13.1]} 26...
Nf8 {[%clk 0:01:17.2]} 27. Rxe8 {[%clk 0:00:09]} 27... Rxe8 {[%clk 0:01:16.1]}
28. Re1 {[%clk 0:00:09.4]} 28... Rxe1 {[%clk 0:01:13]} 29. Bxe1 {[%clk
0:00:10.3]} 29... Ne6 {[%clk 0:01:13.3]} 30. Bf2 {[%clk 0:00:10.1]} 30... Nf4+
{[%clk 0:01:12.2]} 0-1

[Event "*** Titled Tuesday Blitz"]
[Site "Chess.com"]
[Date "2021.04.27"]
[Round "8"]
[White "Roedor"]
[Black "Zipa5"]
[Result "1/2-1/2"]
[WhiteElo "2283"]
[BlackElo "1870"]
[TimeControl "180+1"]
[EndTime "11:25:53 PDT"]
[Termination "Game drawn by repetition"]

1. d4 {[%clk 0:02:57.1]} 1... g6 {[%clk 0:02:57.8]} 2. c4 {[%clk 0:02:56.8]}
2... Bg7 {[%clk 0:02:55.6]} 3. Nf3 {[%clk 0:02:56]} 3... d6 {[%clk 0:02:54.7]}
4. g3 {[%clk 0:02:55.8]} 4... Nd7 {[%clk 0:02:54.2]} 5. Bg2 {[%clk 0:02:56.2]}
5... e5 {[%clk 0:02:53.8]} 6. Nc3 {[%clk 0:02:53.9]} 6... c6 {[%clk 0:02:51.5]}
7. O-O {[%clk 0:02:53.5]} 7... Ngf6 {[%clk 0:02:46.8]} 8. e4 {[%clk 0:02:51.6]}
8... O-O {[%clk 0:02:46]} 9. h3 {[%clk 0:02:51.5]} 9... a5 {[%clk 0:02:43.5]}
10. Be3 {[%clk 0:02:50.9]} 10... Qe7 {[%clk 0:02:41.6]} 11. Qc2 {[%clk
0:02:48.4]} 11... Ne8 {[%clk 0:02:32.5]} 12. Rad1 {[%clk 0:02:46.1]} 12... f5
{[%clk 0:02:25.1]} 13. dxe5 {[%clk 0:02:45.3]} 13... dxe5 {[%clk 0:02:22.3]} 14.
exf5 {[%clk 0:02:44.6]} 14... gxf5 {[%clk 0:02:20.8]} 15. Bg5 {[%clk 0:02:35.9]}
15... Ndf6 {[%clk 0:02:17.4]} 16. Rfe1 {[%clk 0:02:30.9]} 16... e4 {[%clk
0:02:08.9]} 17. Nd4 {[%clk 0:02:28.7]} 17... Qf7 {[%clk 0:01:59.5]} 18. b3
{[%clk 0:02:19.4]} 18... Qg6 {[%clk 0:01:32.8]} 19. Be3 {[%clk 0:02:13.4]} 19...
Nc7 {[%clk 0:01:16.2]} 20. Nde2 {[%clk 0:02:06.5]} 20... Ne6 {[%clk 0:01:12.4]}
21. Nf4 {[%clk 0:02:03]} 21... Nxf4 {[%clk 0:01:09.9]} 22. Bxf4 {[%clk
0:02:03.9]} 22... Nh5 {[%clk 0:01:05.9]} 23. Bd6 {[%clk 0:01:56.5]} 23... Re8
{[%clk 0:00:56.5]} 24. Ne2 {[%clk 0:01:50.9]} 24... e3 {[%clk 0:00:39.1]} 25. f3
{[%clk 0:01:36.4]} 25... Be6 {[%clk 0:00:17.8]} 26. g4 {[%clk 0:01:35.4]} 26...
fxg4 {[%clk 0:00:16.5]} 27. hxg4 {[%clk 0:01:36.3]} 27... Nf6 {[%clk 0:00:15.4]}
28. Nf4 {[%clk 0:01:34.5]} 28... Qxc2 {[%clk 0:00:13.1]} 29. g5 {[%clk 0:01:28]}
29... Qf2+ {[%clk 0:00:12]} 30. Kh1 {[%clk 0:01:26.3]} 30... Qh4+ {[%clk
0:00:11.2]} 31. Kg1 {[%clk 0:01:24.6]} 31... Qf2+ {[%clk 0:00:10.6]} 32. Kh1
{[%clk 0:01:24.4]} 32... Qh4+ {[%clk 0:00:10]} 33. Kg1 {[%clk 0:01:24.8]} 33...
Qf2+ {[%clk 0:00:09.3]} 1/2-1/2

[Event "*** Titled Tuesday Blitz"]
[Site "Chess.com"]
[Date "2021.04.27"]
[Round "8"]
[White "harlem4brew"]
[Black "TengisChess"]
[Result "0-1"]
[WhiteElo "2398"]
[BlackElo "2557"]
[TimeControl "180+1"]
[EndTime "11:25:58 PDT"]
[Termination "TengisChess won by resignation"]

1. d4 {[%clk 0:03:00.9]} 1... Nf6 {[%clk 0:02:58.6]} 2. Nf3 {[%clk 0:03:00.5]}
2... g6 {[%clk 0:02:59]} 3. c4 {[%clk 0:02:59.7]} 3... Bg7 {[%clk 0:02:59.1]} 4.
Nc3 {[%clk 0:03:00.6]} 4... O-O {[%clk 0:02:59.6]} 5. Bf4 {[%clk 0:03:01]} 5...
c5 {[%clk 0:02:59.8]} 6. d5 {[%clk 0:03:00.5]} 6... d6 {[%clk 0:03:00.3]} 7. h3
{[%clk 0:02:59.2]} 7... Na6 {[%clk 0:03:01.2]} 8. a3 {[%clk 0:02:57.7]} 8... Nc7
{[%clk 0:03:02.1]} 9. Qd2 {[%clk 0:02:56.8]} 9... a6 {[%clk 0:03:02.7]} 10. a4
{[%clk 0:02:56.6]} 10... Rb8 {[%clk 0:03:02.6]} 11. a5 {[%clk 0:02:55.6]} 11...
b5 {[%clk 0:03:02.4]} 12. axb6 {[%clk 0:02:53.8]} 12... Rxb6 {[%clk 0:03:02.5]}
13. e4 {[%clk 0:02:53.5]} 13... Bd7 {[%clk 0:03:02.7]} 14. Bd3 {[%clk
0:02:52.2]} 14... Qb8 {[%clk 0:03:02.7]} 15. Ra2 {[%clk 0:02:51]} 15... Qb7
{[%clk 0:03:03]} 16. O-O {[%clk 0:02:50.9]} 16... Rb8 {[%clk 0:03:03]} 17. Rb1
{[%clk 0:02:48.9]} 17... Rb3 {[%clk 0:03:00.6]} 18. e5 {[%clk 0:02:47.4]} 18...
Nfe8 {[%clk 0:02:47.8]} 19. Bc2 {[%clk 0:02:36.1]} 19... Rb4 {[%clk 0:02:44.9]}
20. b3 {[%clk 0:02:32.2]} 20... Rb6 {[%clk 0:02:39]} 21. exd6 {[%clk 0:02:28.9]}
21... Nxd6 {[%clk 0:02:39.6]} 22. Bxd6 {[%clk 0:02:27.6]} 22... exd6 {[%clk
0:02:39.3]} 23. Ne4 {[%clk 0:02:26.6]} 23... Bf5 {[%clk 0:02:39.2]} 24. Re1
{[%clk 0:02:16.9]} 24... Bxe4 {[%clk 0:02:37.7]} 25. Rxe4 {[%clk 0:02:15.2]}
25... Ne8 {[%clk 0:02:35.6]} 26. h4 {[%clk 0:02:09.2]} 26... Nf6 {[%clk
0:02:35]} 27. Re1 {[%clk 0:02:07.9]} 27... Qd7 {[%clk 0:02:30]} 28. Rea1 {[%clk
0:02:04.4]} 28... Ng4 {[%clk 0:02:28.8]} 29. Re1 {[%clk 0:02:00.5]} 29... Ne5
{[%clk 0:02:28.8]} 30. Nxe5 {[%clk 0:02:00.3]} 30... Bxe5 {[%clk 0:02:29.7]} 31.
g3 {[%clk 0:01:53.4]} 31... Qd8 {[%clk 0:02:27.4]} 32. Kg2 {[%clk 0:01:50.4]}
32... Qf6 {[%clk 0:02:27.4]} 33. Re3 {[%clk 0:01:48.1]} 33... Bd4 {[%clk
0:02:26.9]} 34. Rf3 {[%clk 0:01:47.5]} 34... Qe5 {[%clk 0:02:25.4]} 35. Qd3
{[%clk 0:01:42]} 35... Re8 {[%clk 0:02:23.2]} 36. Bd1 {[%clk 0:01:38.4]} 36...
Qe1 {[%clk 0:02:19.8]} 37. Re2 {[%clk 0:01:32.9]} 37... Rxe2 {[%clk 0:02:19.3]}
38. Qxe2 {[%clk 0:01:33.8]} 38... Qxe2 {[%clk 0:02:19.5]} 39. Bxe2 {[%clk
0:01:32.4]} 39... f5 {[%clk 0:02:16.4]} 40. h5 {[%clk 0:01:31.3]} 40... Kg7
{[%clk 0:02:16]} 41. hxg6 {[%clk 0:01:31]} 41... hxg6 {[%clk 0:02:16.9]} 42. Bd1
{[%clk 0:01:31.4]} 42... Rb8 {[%clk 0:02:13.8]} 43. Rd3 {[%clk 0:01:31.1]} 43...
Kf6 {[%clk 0:02:10.1]} 44. Rd2 {[%clk 0:01:29.3]} 44... g5 {[%clk 0:02:10.3]}
45. Re2 {[%clk 0:01:28.3]} 45... Be5 {[%clk 0:02:10.7]} 46. Re1 {[%clk 0:01:26]}
46... a5 {[%clk 0:02:05.8]} 47. Re2 {[%clk 0:01:25.7]} 47... g4 {[%clk
0:01:44.8]} 48. Ra2 {[%clk 0:01:22.6]} 48... Ra8 {[%clk 0:01:44.3]} 49. Re2
{[%clk 0:01:21.8]} 49... Ra7 {[%clk 0:01:42.3]} 50. f4 {[%clk 0:01:20.2]} 50...
gxf3+ {[%clk 0:01:42.1]} 51. Kxf3 {[%clk 0:01:21.1]} 51... Rg7 {[%clk
0:01:42.1]} 52. Rg2 {[%clk 0:01:18.6]} 52... Rg4 {[%clk 0:01:42.1]} 53. Bc2
{[%clk 0:01:06.5]} 53... a4 {[%clk 0:01:41.2]} 54. bxa4 {[%clk 0:00:55.8]} 54...
Rxc4 {[%clk 0:01:41.2]} 55. Rh2 {[%clk 0:00:50.3]} 55... Rc3+ {[%clk 0:01:41]}
0-1

[Event "*** Titled Tuesday Blitz"]
[Site "Chess.com"]
[Date "2021.04.27"]
[Round "8"]
[White "kubal123"]
[Black "RiskyDecision"]
[Result "0-1"]
[WhiteElo "2302"]
[BlackElo "2541"]
[TimeControl "180+1"]
[EndTime "11:25:59 PDT"]
[Termination "RiskyDecision won by resignation"]

1. e4 {[%clk 0:03:00.9]} 1... c5 {[%clk 0:02:59.7]} 2. Nf3 {[%clk 0:03:00.3]}
2... e6 {[%clk 0:03:00.3]} 3. d4 {[%clk 0:03:00.5]} 3... cxd4 {[%clk 0:03:00.5]}
4. Nxd4 {[%clk 0:02:59.3]} 4... Nf6 {[%clk 0:03:01]} 5. Nc3 {[%clk 0:02:58.8]}
5... Nc6 {[%clk 0:03:01.4]} 6. Be3 {[%clk 0:02:56.7]} 6... Bb4 {[%clk
0:02:59.5]} 7. Nxc6 {[%clk 0:02:31.4]} 7... bxc6 {[%clk 0:02:58.7]} 8. e5 {[%clk
0:02:21.1]} 8... Nd5 {[%clk 0:02:52.6]} 9. Bd2 {[%clk 0:02:14.1]} 9... Qc7
{[%clk 0:02:42.2]} 10. f4 {[%clk 0:02:04.3]} 10... O-O {[%clk 0:02:35.6]} 11.
Nxd5 {[%clk 0:02:03.5]} 11... Bxd2+ {[%clk 0:02:35]} 12. Qxd2 {[%clk 0:02:04.4]}
12... cxd5 {[%clk 0:02:35.2]} 13. Bd3 {[%clk 0:02:04.7]} 13... Qb6 {[%clk
0:02:26.8]} 14. c3 {[%clk 0:01:54.4]} 14... Rb8 {[%clk 0:02:22.6]} 15. O-O-O
{[%clk 0:01:49.9]} 15... Ba6 {[%clk 0:02:15.5]} 16. Bxa6 {[%clk 0:01:47.7]}
16... Qxa6 {[%clk 0:02:15.2]} 17. Kb1 {[%clk 0:01:47.7]} 17... Rb6 {[%clk
0:02:09.3]} 18. Qd3 {[%clk 0:01:42.7]} 18... Qa3 {[%clk 0:02:05.6]} 19. Rd2
{[%clk 0:01:39.4]} 19... Rfb8 {[%clk 0:02:04.5]} 20. Qe2 {[%clk 0:01:31.7]}
20... Qxc3 {[%clk 0:02:02.9]} 21. Rc1 {[%clk 0:01:29.5]} 21... Qa5 {[%clk
0:01:56.7]} 22. Rdc2 {[%clk 0:01:28]} 22... g6 {[%clk 0:01:43.3]} 23. h4 {[%clk
0:01:26.4]} 23... Ra6 {[%clk 0:01:35.5]} 24. Rc8+ {[%clk 0:01:08.9]} 24... Rxc8
{[%clk 0:01:27.5]} 25. Rxc8+ {[%clk 0:01:09.8]} 25... Kg7 {[%clk 0:01:28]} 26.
a3 {[%clk 0:01:01.9]} 26... Rb6 {[%clk 0:01:24.4]} 27. h5 {[%clk 0:00:58.2]}
27... Qxa3 {[%clk 0:01:17.1]} 28. Qf2 {[%clk 0:00:53.4]} 28... Qd3+ {[%clk
0:01:10.2]} 29. Rc2 {[%clk 0:00:47.9]} 29... Rc6 {[%clk 0:01:08.8]} 30. h6+
{[%clk 0:00:42]} 30... Kg8 {[%clk 0:01:04.7]} 0-1

[Event "*** Titled Tuesday Blitz"]
[Site "Chess.com"]
[Date "2021.04.27"]
[Round "8"]
[White "RobertoJBM"]
[Black "StockholmMissile"]
[Result "1/2-1/2"]
[WhiteElo "2731"]
[BlackElo "2617"]
[TimeControl "180+1"]
[EndTime "11:26:05 PDT"]
[Termination "Game drawn by repetition"]

1. d4 {[%clk 0:02:58.4]} 1... d5 {[%clk 0:02:59.4]} 2. c4 {[%clk 0:02:57.9]}
2... c6 {[%clk 0:02:59.7]} 3. Nf3 {[%clk 0:02:57.2]} 3... Nf6 {[%clk 0:02:59.7]}
4. Nc3 {[%clk 0:02:57.3]} 4... e6 {[%clk 0:02:59.6]} 5. Bg5 {[%clk 0:02:56.7]}
5... Nbd7 {[%clk 0:02:58.6]} 6. e3 {[%clk 0:02:56]} 6... Be7 {[%clk 0:02:56.5]}
7. Bd3 {[%clk 0:02:52.8]} 7... b6 {[%clk 0:02:53.6]} 8. O-O {[%clk 0:02:51.2]}
8... Bb7 {[%clk 0:02:53.1]} 9. cxd5 {[%clk 0:02:47.5]} 9... cxd5 {[%clk
0:02:50.3]} 10. Qe2 {[%clk 0:02:46.5]} 10... O-O {[%clk 0:02:47.4]} 11. Rfc1
{[%clk 0:02:46.2]} 11... a6 {[%clk 0:02:44.5]} 12. Rc2 {[%clk 0:02:44.6]} 12...
b5 {[%clk 0:02:32.8]} 13. Rac1 {[%clk 0:02:43.9]} 13... Nb6 {[%clk 0:02:32.3]}
14. Nb1 {[%clk 0:02:42.2]} 14... Rc8 {[%clk 0:02:27.2]} 15. Ne5 {[%clk
0:02:35.4]} 15... Nfd7 {[%clk 0:02:22.5]} 16. Rxc8 {[%clk 0:02:31]} 16... Nxc8
{[%clk 0:02:21]} 17. Rxc8 {[%clk 0:01:34.2]} 17... Qxc8 {[%clk 0:01:41]} 18.
Bxe7 {[%clk 0:01:32.8]} 18... Re8 {[%clk 0:01:40.5]} 19. Bxh7+ {[%clk
0:01:09.4]} 19... Kxh7 {[%clk 0:01:36.3]} 20. Qh5+ {[%clk 0:01:08.7]} 20... Kg8
{[%clk 0:01:36.9]} 21. Qxf7+ {[%clk 0:01:08.7]} 21... Kh7 {[%clk 0:01:37.5]} 22.
Qg6+ {[%clk 0:00:56.4]} 22... Kh8 {[%clk 0:01:31.7]} 23. Qh5+ {[%clk 0:00:11.8]}
23... Kg8 {[%clk 0:01:31.1]} 24. Qf7+ {[%clk 0:00:12.7]} 24... Kh7 {[%clk
0:01:29.9]} 25. Qg6+ {[%clk 0:00:02.9]} 25... Kg8 {[%clk 0:01:30.4]} 26. Qxe6+
{[%clk 0:00:03]} 26... Kh7 {[%clk 0:01:31]} 27. Qg6+ {[%clk 0:00:03.1]} 27...
Kh8 {[%clk 0:01:23.6]} 28. Qh5+ {[%clk 0:00:02]} 28... Kg8 {[%clk 0:01:23.7]}
29. Qf7+ {[%clk 0:00:02.3]} 29... Kh7 {[%clk 0:01:21.2]} 30. Qf5+ {[%clk
0:00:02.7]} 30... Kg8 {[%clk 0:01:19.8]} 31. Qe6+ {[%clk 0:00:02.4]} 31... Kh7
{[%clk 0:01:16.8]} 32. Qh3+ {[%clk 0:00:02.6]} 32... Kg8 {[%clk 0:01:15.8]} 33.
Qe6+ {[%clk 0:00:02.7]} 1/2-1/2

[Event "*** Titled Tuesday Blitz"]
[Site "Chess.com"]
[Date "2021.04.27"]
[Round "8"]
[White "nrvisakh"]
[Black "kingofthenil"]
[Result "0-1"]
[WhiteElo "2802"]
[BlackElo "2665"]
[TimeControl "180+1"]
[EndTime "11:26:06 PDT"]
[Termination "kingofthenil won on time"]

1. e4 {[%clk 0:03:00.9]} 1... Nc6 {[%clk 0:02:58]} 2. Nf3 {[%clk 0:02:50]} 2...
d5 {[%clk 0:02:57.7]} 3. exd5 {[%clk 0:02:48.4]} 3... Qxd5 {[%clk 0:02:58.6]} 4.
Nc3 {[%clk 0:02:47.2]} 4... Qh5 {[%clk 0:02:58.7]} 5. Be2 {[%clk 0:02:47]} 5...
Bg4 {[%clk 0:02:58.4]} 6. h3 {[%clk 0:02:45.7]} 6... O-O-O {[%clk 0:02:58.5]} 7.
O-O {[%clk 0:02:45.5]} 7... Bxh3 {[%clk 0:02:58.7]} 8. gxh3 {[%clk 0:02:43.1]}
8... Qxh3 {[%clk 0:02:59.6]} 9. Ng5 {[%clk 0:02:22.4]} 9... Qh4 {[%clk
0:02:59.2]} 10. Nxf7 {[%clk 0:02:16.5]} 10... Nh6 {[%clk 0:02:59.3]} 11. Nxd8
{[%clk 0:02:12]} 11... e6 {[%clk 0:02:58.9]} 12. Nf7 {[%clk 0:01:02.3]} 12...
Nxf7 {[%clk 0:02:27.3]} 13. Bf3 {[%clk 0:00:55.5]} 13... Bd6 {[%clk 0:02:13.5]}
14. Re1 {[%clk 0:00:54.9]} 14... Ng5 {[%clk 0:02:14.1]} 15. Ne4 {[%clk
0:00:27.3]} 15... Nh3+ {[%clk 0:01:35.3]} 16. Kf1 {[%clk 0:00:22.8]} 16... Rf8
{[%clk 0:01:35.3]} 17. Re3 {[%clk 0:00:09.9]} 17... Ne5 {[%clk 0:01:13.3]} 18.
Qe2 {[%clk 0:00:05.3]} 18... Nf4 {[%clk 0:01:07.5]} 19. Qb5 {[%clk 0:00:03.9]}
19... Qh3+ {[%clk 0:01:03.2]} 20. Ke1 {[%clk 0:00:02]} 20... Nxf3+ {[%clk
0:01:01.2]} 21. Rxf3 {[%clk 0:00:02.5]} 21... Qxf3 {[%clk 0:00:54.7]} 22. Ng3
{[%clk 0:00:02.6]} 22... Ng2+ {[%clk 0:00:52.4]} 0-1

[Event "*** Titled Tuesday Blitz"]
[Site "Chess.com"]
[Date "2021.04.27"]
[Round "8"]
[White "laboratorio25"]
[Black "AsaHoffmann"]
[Result "1-0"]
[WhiteElo "2545"]
[BlackElo "2373"]
[TimeControl "180+1"]
[EndTime "11:26:09 PDT"]
[Termination "laboratorio25 won by resignation"]

1. e4 {[%clk 0:03:00.9]} 1... d6 {[%clk 0:02:52.6]} 2. d4 {[%clk 0:02:58.3]}
2... Nf6 {[%clk 0:02:51.6]} 3. Nc3 {[%clk 0:02:57.5]} 3... c6 {[%clk 0:02:51.6]}
4. f4 {[%clk 0:02:55]} 4... Qa5 {[%clk 0:02:50.9]} 5. Bd3 {[%clk 0:02:53.9]}
5... e5 {[%clk 0:02:50.5]} 6. Nf3 {[%clk 0:02:52.5]} 6... exd4 {[%clk 0:02:50]}
7. Nxd4 {[%clk 0:02:51.5]} 7... Qb6 {[%clk 0:02:49.5]} 8. Nf3 {[%clk 0:02:43.4]}
8... Bg4 {[%clk 0:02:45.3]} 9. h3 {[%clk 0:02:42.6]} 9... Bxf3 {[%clk
0:02:44.8]} 10. Qxf3 {[%clk 0:02:43.5]} 10... Nbd7 {[%clk 0:02:44.3]} 11. Qe3
{[%clk 0:02:34.1]} 11... Be7 {[%clk 0:02:40.7]} 12. Qxb6 {[%clk 0:02:33.7]}
12... axb6 {[%clk 0:02:40.6]} 13. Be3 {[%clk 0:02:31.6]} 13... Nc5 {[%clk
0:02:39.9]} 14. Kf2 {[%clk 0:02:28.5]} 14... O-O {[%clk 0:02:37.5]} 15. Kf3
{[%clk 0:02:28.5]} 15... b5 {[%clk 0:02:35.8]} 16. Bxc5 {[%clk 0:02:26.6]} 16...
dxc5 {[%clk 0:02:35]} 17. e5 {[%clk 0:02:25.5]} 17... Nd7 {[%clk 0:02:25.6]} 18.
Rhd1 {[%clk 0:02:24.6]} 18... Rfd8 {[%clk 0:02:23.3]} 19. a4 {[%clk 0:02:18]}
19... c4 {[%clk 0:02:21.2]} 20. Bf5 {[%clk 0:02:15.7]} 20... b4 {[%clk
0:02:13.5]} 21. Bxd7 {[%clk 0:02:09.6]} 21... bxc3 {[%clk 0:02:13.1]} 22. bxc3
{[%clk 0:02:09.9]} 22... Kf8 {[%clk 0:02:01]} 23. f5 {[%clk 0:02:07.4]} 23...
Bc5 {[%clk 0:01:59.1]} 24. Rab1 {[%clk 0:01:58]} 24... Rxa4 {[%clk 0:01:51.5]}
25. Rxb7 {[%clk 0:01:55]} 25... Ra3 {[%clk 0:01:51.4]} 26. Rd2 {[%clk
0:01:45.4]} 26... Rxc3+ {[%clk 0:01:50.8]} 27. Kg4 {[%clk 0:01:38.6]} 27... Be7
{[%clk 0:01:45.1]} 28. Re2 {[%clk 0:01:33.8]} 28... f6 {[%clk 0:01:41.3]} 29.
exf6 {[%clk 0:01:29.5]} 29... Bxf6 {[%clk 0:01:36.5]} 30. Bxc6 {[%clk
0:01:24.3]} 30... Ra3 {[%clk 0:01:19]} 31. Rd7 {[%clk 0:01:18.8]} 31... Rc8
{[%clk 0:01:12.8]} 32. Bd5 {[%clk 0:01:18.2]} 32... Ra5 {[%clk 0:01:10]} 33.
Rf7+ {[%clk 0:01:16.8]} 33... Kg8 {[%clk 0:01:04]} 34. Rc7+ {[%clk 0:01:16.4]}
34... Rxd5 {[%clk 0:01:02.7]} 35. Rxc8+ {[%clk 0:01:16.7]} 35... Kf7 {[%clk
0:01:02.6]} 36. Rc7+ {[%clk 0:01:17.1]} 36... Kf8 {[%clk 0:01:02.4]} 37. Re6
{[%clk 0:01:13.8]} 37... Rd2 {[%clk 0:00:59.5]} 38. Ra6 {[%clk 0:01:10]} 38...
Ke8 {[%clk 0:00:55.5]} 39. Ra8+ {[%clk 0:01:05.6]} 39... Bd8 {[%clk 0:00:54.8]}
40. Rxc4 {[%clk 0:01:01.1]} 40... Rxg2+ {[%clk 0:00:52.8]} 41. Kf3 {[%clk
0:01:01.2]} 41... Rd2 {[%clk 0:00:52.5]} 42. Rc7 {[%clk 0:01:00.4]} 42... h5
{[%clk 0:00:49.1]} 43. Rxg7 {[%clk 0:00:59.6]} 43... Rxc2 {[%clk 0:00:48.7]} 44.
Rg8+ {[%clk 0:00:59.6]} 44... Kf7 {[%clk 0:00:48.4]} 45. Raxd8 {[%clk
0:00:59.7]} 1-0

[Event "*** Titled Tuesday Blitz"]
[Site "Chess.com"]
[Date "2021.04.27"]
[Round "8"]
[White "DeTimmerman"]
[Black "Nuvas"]
[Result "1-0"]
[WhiteElo "2804"]
[BlackElo "2636"]
[TimeControl "180+1"]
[EndTime "11:26:16 PDT"]
[Termination "DeTimmerman won by resignation"]

1. b4 {[%clk 0:03:00.9]} 1... e5 {[%clk 0:02:59.7]} 2. Bb2 {[%clk 0:02:59.4]}
2... Bxb4 {[%clk 0:02:59.3]} 3. Bxe5 {[%clk 0:02:58]} 3... Nf6 {[%clk 0:03:00]}
4. Nc3 {[%clk 0:02:57.3]} 4... c6 {[%clk 0:02:52.4]} 5. a3 {[%clk 0:02:56.8]}
5... Ba5 {[%clk 0:02:43.2]} 6. Nf3 {[%clk 0:02:55.4]} 6... d6 {[%clk 0:02:43.3]}
7. Bxf6 {[%clk 0:02:54.3]} 7... Qxf6 {[%clk 0:02:42.6]} 8. Ne4 {[%clk 0:02:55]}
8... Qe7 {[%clk 0:02:39.2]} 9. Ng3 {[%clk 0:02:54.4]} 9... O-O {[%clk
0:02:28.4]} 10. e3 {[%clk 0:02:54.6]} 10... Nd7 {[%clk 0:02:27.5]} 11. Be2
{[%clk 0:02:55.1]} 11... Nf6 {[%clk 0:02:22.2]} 12. O-O {[%clk 0:02:56]} 12...
d5 {[%clk 0:02:22]} 13. c4 {[%clk 0:02:53.4]} 13... dxc4 {[%clk 0:02:18]} 14.
Bxc4 {[%clk 0:02:52.7]} 14... Rd8 {[%clk 0:02:17.4]} 15. d4 {[%clk 0:02:52.9]}
15... b5 {[%clk 0:02:05.8]} 16. Bd3 {[%clk 0:02:46.5]} 16... c5 {[%clk
0:02:01.7]} 17. Bxb5 {[%clk 0:02:45.7]} 17... Bg4 {[%clk 0:02:01.9]} 18. Be2
{[%clk 0:02:44.4]} 18... Rab8 {[%clk 0:01:53.4]} 19. Qa4 {[%clk 0:02:41.8]}
19... Bc3 {[%clk 0:01:48.3]} 20. Rad1 {[%clk 0:02:39.6]} 20... cxd4 {[%clk
0:01:36.5]} 21. Nxd4 {[%clk 0:02:36.9]} 21... Bxd4 {[%clk 0:01:28.9]} 22. Rxd4
{[%clk 0:02:35.7]} 22... Rxd4 {[%clk 0:01:29.2]} 23. Qxd4 {[%clk 0:02:22.7]}
23... Bxe2 {[%clk 0:01:28.9]} 24. Nxe2 {[%clk 0:02:23.6]} 24... Qxa3 {[%clk
0:01:29.1]} 25. Ra1 {[%clk 0:02:21]} 25... Qb2 {[%clk 0:01:00]} 26. Qxa7 {[%clk
0:02:10.1]} 26... h5 {[%clk 0:00:59.7]} 27. h3 {[%clk 0:02:06.2]} 27... Kh7
{[%clk 0:00:49]} 28. Ng3 {[%clk 0:02:00]} 28... h4 {[%clk 0:00:45.9]} 29. Nf1
{[%clk 0:01:54.9]} 29... Ne4 {[%clk 0:00:35.1]} 30. Ra2 {[%clk 0:01:52.7]} 30...
Qe5 {[%clk 0:00:35.7]} 31. Qxf7 {[%clk 0:01:12.8]} 31... Rb1 {[%clk 0:00:35.1]}
32. Qc4 {[%clk 0:01:13.3]} 32... Qf5 {[%clk 0:00:24.9]} 33. f3 {[%clk
0:01:10.6]} 33... Ng3 {[%clk 0:00:17.4]} 34. Qxh4+ {[%clk 0:01:10.7]} 34... Nh5
{[%clk 0:00:16.3]} 35. Rf2 {[%clk 0:01:01.6]} 35... Qb5 {[%clk 0:00:14.5]} 36.
g4 {[%clk 0:00:58.6]} 1-0

[Event "*** Titled Tuesday Blitz"]
[Site "Chess.com"]
[Date "2021.04.27"]
[Round "8"]
[White "LifeIsAllAboutChess23"]
[Black "Abdimalik_Abdisalimov"]
[Result "0-1"]
[WhiteElo "2190"]
[BlackElo "2324"]
[TimeControl "180+1"]
[EndTime "11:26:26 PDT"]
[Termination "Abdimalik_Abdisalimov won on time"]

1. d4 {[%clk 0:01:06.9]} 1... Nf6 {[%clk 0:02:56.8]} 2. Bg5 {[%clk 0:01:06.3]}
2... c5 {[%clk 0:02:54.5]} 3. d5 {[%clk 0:01:00.9]} 3... d6 {[%clk 0:02:45.4]}
4. Nc3 {[%clk 0:00:59.9]} 4... Nbd7 {[%clk 0:02:44.4]} 5. e4 {[%clk 0:01:00]}
5... g6 {[%clk 0:02:44]} 6. f4 {[%clk 0:01:00]} 6... Bg7 {[%clk 0:02:44.2]} 7.
Nf3 {[%clk 0:00:58]} 7... O-O {[%clk 0:02:43.7]} 8. Qd2 {[%clk 0:00:56.8]} 8...
a6 {[%clk 0:02:41.8]} 9. h3 {[%clk 0:00:53.7]} 9... b5 {[%clk 0:02:40.8]} 10. e5
{[%clk 0:00:54]} 10... Ne8 {[%clk 0:02:32.7]} 11. Qe3 {[%clk 0:00:46.5]} 11...
b4 {[%clk 0:02:31.3]} 12. Ne2 {[%clk 0:00:32.2]} 12... f6 {[%clk 0:02:18.1]} 13.
exf6 {[%clk 0:00:20.3]} 13... Ndxf6 {[%clk 0:02:18.4]} 14. O-O-O {[%clk
0:00:18.7]} 14... Bb7 {[%clk 0:02:14]} 15. Ng3 {[%clk 0:00:15.1]} 15... Nc7
{[%clk 0:02:01.5]} 16. Bc4 {[%clk 0:00:14.1]} 16... Kh8 {[%clk 0:01:58.2]} 17.
Rhe1 {[%clk 0:00:14.2]} 17... Nfxd5 {[%clk 0:01:54.7]} 18. Bxd5 {[%clk
0:00:12.6]} 18... Nxd5 {[%clk 0:01:54.4]} 19. Qe6 {[%clk 0:00:12.2]} 19... Nxf4
{[%clk 0:01:40.1]} 20. Qxe7 {[%clk 0:00:11.6]} 20... Qxe7 {[%clk 0:01:35.7]} 21.
Rxe7 {[%clk 0:00:10.7]} 21... Bxf3 {[%clk 0:01:33.5]} 22. gxf3 {[%clk
0:00:09.3]} 22... Nxh3 {[%clk 0:01:33.3]} 23. Be3 {[%clk 0:00:08.5]} 23... Rxf3
{[%clk 0:01:32]} 24. Rxd6 {[%clk 0:00:08.6]} 24... Bf8 {[%clk 0:01:18.8]} 25.
Bxc5 {[%clk 0:00:04.8]} 25... Bxe7 {[%clk 0:01:18]} 26. Bd4+ {[%clk 0:00:05.4]}
26... Kg8 {[%clk 0:01:16.2]} 27. Rd7 {[%clk 0:00:05.7]} 27... Bf8 {[%clk
0:01:12.3]} 28. Ne4 {[%clk 0:00:05.1]} 28... Re8 {[%clk 0:01:04.2]} 29. Nf6+
{[%clk 0:00:04.3]} 29... Rxf6 {[%clk 0:01:04.4]} 30. Bxf6 {[%clk 0:00:04.5]}
30... Nf4 {[%clk 0:01:02.9]} 31. Kd2 {[%clk 0:00:03.9]} 31... h5 {[%clk
0:01:02]} 32. Ra7 {[%clk 0:00:02.1]} 32... Re6 {[%clk 0:00:59.8]} 0-1